bitfinex-derivatives/quotes_SOLF0:USTF0_20251101
["timestamp","ask_amount","ask_price","bid_price","bid_amount"]
[1762004564966,2.73,185.06,184.94,2.71]
[1762004565258,7.38588385,185.05,184.94,2.71]
[1762004565458,4.65588385,185.04,184.94,2.71]
[1762004565652,2.73,185.02,184.94,2.71]
[1762004565854,4.6553306,185.01,184.94,2.71]
[1762004566263,4.6553306,185.0,184.94,2.71]
[1762004566458,2.88,185.0,184.88,9.5699]
[1762004566663,4.6552838,184.99,184.9,2.69]
[1762004566859,7.53530308,184.98,184.9,2.69]
[1762004567064,4.8683,184.95,184.86,2.69]
[1762004567264,4.65384394,184.94,184.86,2.69]
[1762004567559,7.748,184.96,184.86,2.69]
[1762004567763,4.65430869,184.95,184.86,2.69]
[1762004568067,8.23648625,184.99,184.86,2.69]
[1762004568261,4.6542705,184.98,184.88,2.69]
[1762004568467,2.88,184.99,184.88,2.69]
[1762004568959,4.65587223,184.98,184.88,2.69]
[1762004569154,51.92,185.12,184.88,2.69]
[1762004569155,2.88,185.04,184.88,2.69]
[1762004569459,16.72170312,185.03,184.91,2.69]
[1762004569654,4.65621802,185.02,184.91,2.69]
[1762004569860,4.65621802,185.01,184.92,4.869]
[1762004570063,2.88,185.03,184.93,2.69]
[1762004570369,4.66295951,185.02,184.93,2.69]
[1762004570572,2.88,185.03,184.93,2.69]
[1762004570870,4.66277515,185.02,184.93,2.69]
[1762004571058,2.88,185.03,184.93,2.69]
[1762004571254,4.66275884,185.02,184.93,2.69]
[1762004571458,2.88,185.01,184.93,2.69]
[1762004574771,4.67228638,185.0,184.93,2.69]
[1762004574970,2.88,185.01,184.93,2.69]
[1762004575174,4.67308898,185.0,184.93,2.69]
[1762004575374,4.67308898,184.99,184.93,2.69]
[1762004575575,4.67308898,184.98,184.93,2.69]
[1762004575783,2.88,185.04,184.93,2.69]
[1762004576078,11.82211487,185.03,184.93,2.69]
[1762004576274,4.67647528,185.02,184.93,2.69]
[1762004576476,4.67647528,185.01,184.95,2.69]
[1762004576674,4.67647528,185.0,184.95,2.69]
[1762004576876,5.35648625,185.05,184.95,2.69]
[1762004577079,4.68139807,185.04,184.95,2.69]
[1762004577378,4.68139807,185.03,184.97,2.69]
[1762004577580,4.68139807,185.02,184.97,2.69]
[1762004577773,2.88,185.07,184.97,2.69]
[1762004577966,11.83920457,185.06,184.97,2.69]
[1762004578171,4.68586368,185.05,184.97,2.69]
[1762004578382,4.68586368,185.04,184.97,2.69]
[1762004578678,4.68586368,185.03,184.97,2.69]
[1762004578887,4.68586368,185.02,184.97,2.69]
[1762004579069,4.68586368,185.01,184.98,2.69]
[1762004579381,7.7454,185.06,184.98,2.69]
[1762004579571,4.69527436,185.05,184.98,2.69]
[1762004579773,4.69527436,185.04,184.98,2.69]
[1762004580076,4.69527436,185.03,184.98,2.69]
[1762004580370,4.69527436,185.03,184.92,44.3]
[1762004580371,2.88,185.01,184.94,4.8684]
[1762004580571,8.98086776,185.0,184.93,2.69]
[1762004580768,4.69527436,184.99,184.93,2.69]
[1762004580967,4.69527436,184.98,184.93,7.5587]
[1762004581179,4.69527436,184.97,184.94,2.69]
[1762004581478,4.69527436,184.96,184.94,2.69]
[1762004581778,4.69527436,184.96,184.82,108.08]
[1762004581779,2.88,184.98,184.91,2.69]
[1762004581981,4.49059837,184.97,184.91,2.69]
[1762004582278,4.49658803,184.96,184.91,2.69]
[1762004582476,2.88,184.98,184.91,2.69]
[1762004582675,2.88,184.96,184.87,2.69]
[1762004582866,11.67308167,184.95,184.87,2.69]
[1762004583071,4.49658571,184.94,184.87,2.69]
[1762004583267,4.50036948,184.93,184.87,2.69]
[1762004583477,2.88,184.95,184.87,2.69]
[1762004583669,2.88,184.95,184.77,0.94163487]
[1762004583670,2.88,184.93,184.83,2.69]
[1762004583877,2.88,184.91,184.83,2.69]
[1762004584174,8.80114876,184.9,184.83,2.69]
[1762004584476,11.6846017,184.89,184.83,2.69]
[1762004584681,7.38037181,184.88,184.83,2.69]
[1762004584983,2.88,184.92,184.83,2.69]
[1762004585189,8.80694791,184.91,184.83,2.69]
[1762004585376,8.80694791,184.9,184.83,2.69]
[1762004585576,8.81010218,184.89,184.83,2.69]
[1762004585883,11.69306156,184.88,184.83,2.69]
[1762004586084,7.3858301,184.87,184.79,2.69]
[1762004586269,7.38387973,184.86,184.79,2.69]
[1762004586474,5.35648625,184.93,184.79,2.69]
[1762004586681,2.88,184.91,184.79,2.69]
[1762004586881,5.35648625,184.93,184.79,2.69]
[1762004586882,4.8698,184.89,184.79,2.69]
[1762004587084,8.81740851,184.88,184.79,2.69]
[1762004587278,8.81740851,184.87,184.79,2.69]
[1762004587474,4.50787688,184.86,184.82,2.69]
[1762004587675,2.88,184.9,184.82,2.69]
[1762004587880,8.81974627,184.89,184.82,2.69]
[1762004588081,2.88,184.94,184.82,2.69]
[1762004588281,8.82103768,184.93,184.82,2.69]
[1762004588485,8.82103768,184.92,184.83,2.69]
[1762004588680,4.51027199,184.91,184.86,2.69]
[1762004588985,2.88,184.98,184.86,2.69]
[1762004589179,15.64031439,184.97,184.86,2.69]
[1762004589381,12.76031439,184.96,184.86,2.69]
[1762004589586,12.76031439,184.95,184.86,2.69]
[1762004589778,8.82621143,184.94,184.86,2.69]
[1762004589973,8.82621143,184.93,184.86,2.69]
[1762004590282,8.82621143,184.92,184.86,7.5605]
[1762004590480,8.82621143,184.91,184.87,2.69]
[1762004590685,2.88,184.96,184.87,2.69]
[1762004590888,15.66208872,184.95,184.87,2.69]
[1762004591082,12.78208872,184.94,184.87,2.69]
[1762004591277,8.84191802,184.93,184.87,2.69]
[1762004591488,8.84191802,184.92,184.89,2.69]
[1762004591680,2.88,185.0,184.89,2.69]
[1762004591878,12.71704673,184.99,184.89,2.69]
[1762004592189,15.59704673,184.98,184.91,2.69]
[1762004592379,15.59704673,184.97,184.85,2.69]
[1762004592688,12.71712251,184.96,184.85,2.69]
[1762004592987,8.77223404,184.95,184.87,7.5602]
[1762004593185,8.77223404,184.94,184.88,2.69]
[1762004593383,2.88,184.97,184.88,2.69]
[1762004593583,2.88,184.95,184.88,2.69]
[1762004593782,8.77070419,184.94,184.88,2.69]
[1762004594084,2.88,184.95,184.88,2.69]
[1762004594085,4.3235314,184.93,184.88,2.69]
[1762004594389,2.88,184.95,184.88,2.69]
[1762004594585,8.76902451,184.94,184.88,2.69]
[1762004594777,4.32274391,184.93,184.88,2.69]
[1762004595083,2.88,184.95,184.88,2.69]
[1762004595280,8.7687277,184.94,184.88,2.69]
[1762004595481,2.88,184.95,184.88,2.69]
[1762004595683,8.76836162,184.94,184.88,2.69]
[1762004595884,2.88,184.95,184.88,2.69]
[1762004596084,8.76834882,184.94,184.88,2.69]
[1762004596289,2.88,184.95,184.88,2.69]
[1762004597393,4.32307079,184.94,184.88,2.69]
[1762004597591,2.88,184.95,184.88,2.69]
[1762004597891,4.32307079,184.94,184.88,2.69]
[1762004598085,2.88,184.95,184.88,2.69]
[1762004598885,2.88,184.93,184.84,2.89]
[1762004599887,7.7488,184.93,184.85,2.89]
[1762004600087,2.88,184.93,184.85,2.89]
[1762004600292,2.77,184.97,184.87,2.77]
[1762004600594,8.7270138,184.96,184.87,2.77]
[1762004600793,2.77,184.96,184.87,2.77]
[1762004601195,2.77,184.96,184.88,4.8701]
[1762004601691,2.77,184.96,184.88,7.6401]
[1762004601896,2.77,184.95,184.84,2.77]
[1762004602085,5.35648625,184.98,184.84,2.77]
[1762004602086,2.77,184.94,184.84,2.77]
[1762004602391,5.35648625,185.02,184.8,7.6422]
[1762004602392,7.6399,184.89,184.8,7.6422]
[1762004602594,2.77,184.88,184.8,2.77]
[1762004602790,5.35648625,184.9,184.76,2.77]
[1762004602791,2.77,184.85,184.76,2.77]
[1762004602996,2.77,184.85,184.72,12.36451142]
[1762004603295,2.77,184.85,184.73,3.71176229]
[1762004603485,2.77,184.83,184.73,3.71176229]
[1762004603888,2.77,184.83,184.74,2.77]
[1762004605904,2.77,184.83,184.76,7.6433]
[1762004606195,2.77,184.83,184.76,2.77]
[1762004606896,2.77,184.83,184.73,0.94181326]
[1762004607096,2.77,184.83,184.73,3.71181326]
[1762004608086,2.77,184.83,184.73,8.58571326]
[1762004608293,2.77,184.81,184.72,9.59451142]
[1762004608685,2.77,184.79,184.72,9.59451142]
[1762004608898,2.77,184.83,184.73,2.77]
[1762004609997,2.77,184.83,184.73,7.6441]
[1762004610696,2.77,184.83,184.75,4.8735]
[1762004610992,2.77,184.87,184.76,2.77]
[1762004611196,2.77,184.87,184.81,7.6419]
[1762004611500,2.77,184.91,184.82,2.77]
[1762004612394,2.77,184.89,184.78,4.8727]
[1762004612610,2.77,184.89,184.78,7.6427]
[1762004612788,2.77,184.89,184.81,2.77]
[1762004613596,2.77,184.89,184.83,2.77]
[1762004614798,8.12648625,184.93,184.83,2.77]
[1762004615105,2.77,184.93,184.84,7.6412]
[1762004615404,2.77,184.92,184.82,2.77]
[1762004616004,2.77,184.92,184.84,2.77]
[1762004617100,2.77,184.92,184.84,7.6409]
[1762004617404,2.77,185.02,184.85,2.77]
[1762004617604,2.77,184.99,184.89,2.77]
[1762004618405,2.77,184.98,184.89,2.77]
[1762004619797,2.77,184.96,184.84,2.77]
[1762004620206,2.77,184.94,184.84,2.77]
[1762004621412,2.77,184.92,184.84,2.77]
[1762004622301,7.6383,184.96,184.84,2.77]
[1762004622506,11.4870363,184.95,184.84,2.77]
[1762004622811,2.77,184.95,184.84,2.77]
[1762004623898,13.59143547,184.94,184.84,2.77]
[1762004624103,2.77,184.93,184.84,2.77]
[1762004627721,16.45701868,184.97,184.86,2.7]
[1762004627909,4.44937987,184.96,184.86,2.7]
[1762004628213,4.47553825,184.95,184.87,2.7]
[1762004628410,8.82901868,185.0,184.87,2.7]
[1762004628710,8.7618658,184.99,184.87,2.7]
[1762004628910,2.76,185.01,184.91,2.7]
[1762004629115,8.74136204,185.0,184.91,2.7]
[1762004629315,2.76,185.01,184.91,2.7]
[1762004629517,4.45557661,185.0,184.92,7.5691]
[1762004629914,2.76,185.01,184.93,2.7]
[1762004630118,4.49736252,185.0,184.93,2.7]
[1762004630314,2.76,185.01,184.93,2.7]
[1762004630522,4.49611859,185.0,184.95,2.7]
[1762004630717,11.58901868,185.05,184.95,2.7]
[1762004630918,8.95205987,185.04,184.95,2.7]
[1762004631120,11.58901868,185.05,184.97,2.7]
[1762004631308,4.4967333,185.04,184.97,2.7]
[1762004631507,2.76,185.05,184.97,2.7]
[1762004631721,2.76,185.05,184.98,4.8674]
[1762004633616,2.76,185.05,184.98,7.5674]
[1762004634217,2.76,185.05,184.95,19.34]
[1762004634426,2.76,185.03,184.95,19.34]
[1762004636122,7.6263,185.03,184.95,22.04]
[1762004636324,2.76,185.03,184.96,2.7]
[1762004637023,4.8656,185.05,184.96,2.7]
[1762004637230,11.58901868,185.07,184.96,2.7]
[1762004637424,4.48403759,185.06,184.96,2.7]
[1762004637625,11.58901868,185.07,184.97,2.7]
[1762004638320,2.76,185.07,184.99,2.7]
[1762004639724,7.6243,185.11,184.99,2.7]
[1762004639928,2.76,185.09,184.99,2.7]
[1762004640421,2.76,185.07,184.99,2.7]
[1762004642133,7.6252,185.07,184.99,2.7]
[1762004642433,2.76,185.07,184.99,2.7]
[1762004642829,8.82901868,185.1,184.99,2.7]
[1762004643539,2.76,185.11,185.01,2.7]
[1762004644638,2.76,185.17,185.05,2.7]
[1762004644835,2.76,185.15,185.05,2.7]
[1762004645842,7.6233,185.15,185.05,7.5656]
[1762004646232,2.76,185.14,185.05,2.7]
[1762004646432,2.76,185.14,184.96,62.0]
[1762004646433,2.76,185.12,185.0,2.7]
[1762004647242,2.76,185.12,185.05,2.7]
[1762004650340,11.58901868,185.16,185.05,2.7]
[1762004650941,2.76,185.16,185.08,2.7]
[1762004652044,2.76,185.15,185.08,2.7]
[1762004652245,2.76,185.15,185.05,4.8656]
[1762004652444,2.76,185.15,185.05,7.5656]
[1762004652642,2.76,185.15,185.05,2.7]
[1762004652847,2.76,185.14,185.05,2.7]
[1762004655045,4.8636,185.13,185.05,2.7]
[1762004656044,2.76,185.14,185.05,2.7]
[1762004656245,4.46824805,185.13,185.05,2.7]
[1762004656447,2.76,185.14,185.05,2.7]
[1762004656650,4.4680848,185.13,185.05,2.7]
[1762004656854,2.76,185.14,185.05,2.7]
[1762004657056,4.4683127,185.13,185.05,2.7]
[1762004657353,2.7,185.11,185.02,43.09]
[1762004657554,4.46892054,185.1,185.02,2.69]
[1762004657751,2.7,185.11,185.02,2.69]
[1762004657956,4.46891398,185.1,185.02,2.69]
[1762004658253,4.46891398,185.1,185.0,94.28006625]
[1762004658254,2.7,185.15,185.04,2.69]
[1762004658553,8.82901868,185.16,185.04,2.69]
[1762004658554,2.7,185.13,185.04,2.69]
[1762004658757,4.4703944,185.12,185.04,2.69]
[1762004659058,4.4703944,185.11,185.04,2.69]
[1762004659356,7.5638,185.13,185.04,2.69]
[1762004659357,2.89,185.12,185.04,2.69]
[1762004659543,4.47315919,185.11,185.04,2.69]
[1762004659747,2.89,185.12,185.04,2.69]
[1762004659943,4.47396298,185.11,185.04,2.69]
[1762004660148,4.8631,185.15,185.06,2.89]
[1762004660354,4.52053624,185.14,185.06,2.89]
[1762004660549,4.52053624,185.13,185.06,2.89]
[1762004660753,4.52053624,185.12,185.06,2.89]
[1762004660953,4.8631,185.15,185.06,2.89]
[1762004661160,4.5203961,185.14,185.06,2.89]
[1762004661457,4.5203961,185.13,185.06,2.89]
[1762004661659,4.5203961,185.12,185.06,2.89]
[1762004661956,4.5203961,185.11,185.06,2.89]
[1762004662159,2.67,185.14,185.06,2.89]
[1762004662358,4.5223874,185.13,185.06,2.89]
[1762004662558,4.5223874,185.12,185.06,2.89]
[1762004662762,4.5223874,185.11,185.06,2.89]
[1762004662960,2.67,185.14,185.08,2.75]
[1762004663156,4.52227239,185.13,185.08,2.75]
[1762004663362,2.67,185.17,185.08,2.75]
[1762004663555,4.52177984,185.16,185.08,2.75]
[1762004663858,4.52177984,185.15,185.08,2.75]
[1762004664063,4.52177984,185.14,185.08,2.75]
[1762004664255,4.52177984,185.13,185.08,2.75]
[1762004664457,2.67,185.17,185.08,2.75]
[1762004664662,4.52173314,185.16,185.09,2.75]
[1762004664864,4.52173314,185.15,185.09,2.75]
[1762004665059,7.19173314,185.14,185.09,2.75]
[1762004665266,4.52173314,185.13,185.09,2.75]
[1762004665460,2.67,185.14,185.09,2.75]
[1762004665664,4.52275021,185.13,185.09,2.75]
[1762004665866,2.67,185.14,185.09,2.75]
[1762004666066,4.52275021,185.13,185.09,2.75]
[1762004666263,2.67,185.18,185.1,7.6143]
[1762004666470,4.52309638,185.17,185.11,2.75]
[1762004666666,4.52309638,185.16,185.11,2.75]
[1762004666869,4.52309638,185.15,185.11,2.75]
[1762004667071,2.67,185.18,185.11,2.75]
[1762004667365,4.52379947,185.17,185.11,2.75]
[1762004667572,7.19379947,185.16,185.11,2.75]
[1762004667754,8.82901868,185.21,185.0,94.28006625]
[1762004667755,2.67,185.14,185.07,2.75]
[1762004667958,4.52511755,185.13,185.07,2.75]
[1762004668158,7.19511755,185.12,185.07,2.75]
[1762004668370,2.67,185.12,185.07,2.75]
[1762004670264,2.67,185.16,185.07,2.75]
[1762004670466,4.5329397,185.15,185.07,2.75]
[1762004670663,4.5329397,185.14,185.07,2.75]
[1762004670969,4.5329397,185.13,185.09,2.75]
[1762004671166,2.67,185.16,185.09,2.75]
[1762004671373,4.53710331,185.15,185.09,2.75]
[1762004671671,4.53678452,185.14,185.09,2.75]
[1762004671866,2.67,185.19,185.09,7.6145]
[1762004672172,11.65245135,185.18,185.1,2.75]
[1762004672370,8.98245135,185.17,185.1,2.75]
[1762004672570,4.53724201,185.16,185.1,2.75]
[1762004672768,4.53724201,185.15,185.1,2.75]
[1762004672971,4.53724201,185.14,185.11,2.75]
[1762004673272,2.67,185.18,185.11,2.75]
[1762004673571,8.99747543,185.17,185.11,2.75]
[1762004673870,7.21470435,185.16,185.11,2.75]
[1762004674071,4.54470435,185.15,185.11,2.75]
[1762004674372,4.54470435,185.14,185.11,2.75]
[1762004674570,4.54470435,185.13,185.11,2.75]
[1762004674770,2.67,185.16,185.11,2.75]
[1762004674970,4.54650292,185.15,185.11,2.75]
[1762004675163,4.54650292,185.14,185.11,2.75]
[1762004675363,4.54650292,185.13,185.11,2.75]
[1762004675563,2.67,185.16,185.11,2.75]
[1762004675763,4.54843511,185.15,185.11,2.75]
[1762004675964,4.54843511,185.14,185.11,2.75]
[1762004676165,4.54843511,185.13,185.11,2.75]
[1762004676476,4.54843511,185.12,185.11,2.75]
[1762004677068,4.54843511,185.12,185.08,4.8648]
[1762004677265,2.67,185.16,185.09,2.75]
[1762004677465,7.21993881,185.15,185.09,2.75]
[1762004677665,4.8625,185.18,185.09,2.75]
[1762004677666,7.21993881,185.14,185.09,2.75]
[1762004677976,4.54993881,185.13,185.09,2.75]
[1762004678175,2.67,185.14,185.09,2.75]
[1762004678473,4.55047107,185.13,185.09,2.75]
[1762004678672,2.67,185.14,185.09,2.75]
[1762004678873,4.55044343,185.13,185.09,2.75]
[1762004679076,2.67,185.14,185.09,2.75]
[1762004679268,4.55047107,185.13,185.09,2.75]
[1762004679477,4.55047107,185.12,185.09,2.75]
[1762004679675,2.67,185.14,185.09,2.75]
[1762004679973,4.55113123,185.13,185.09,2.75]
[1762004680174,4.55113123,185.12,185.09,2.75]
[1762004680373,2.67,185.14,185.09,2.75]
[1762004680574,4.55343514,185.13,185.09,2.75]
[1762004680771,4.55343514,185.12,185.09,2.75]
[1762004680976,2.67,185.14,185.09,2.75]
[1762004681177,4.55343514,185.13,185.09,2.75]
[1762004681378,4.55343514,185.12,185.09,2.75]
[1762004681679,2.67,185.14,185.09,2.75]
[1762004681880,7.22634816,185.13,185.1,9.34319449]
[1762004682177,4.55634816,185.12,185.1,9.34319449]
[1762004682366,4.55857963,185.11,185.1,12.09319449]
[1762004683275,2.10189899,185.15,185.1,12.09319449]
[1762004683488,11.69800176,185.14,185.1,12.09319449]
[1762004683781,4.56033013,185.13,185.1,12.09319449]
[1762004683975,4.56033013,185.12,185.1,12.09319449]
[1762004684166,4.56033013,185.11,185.1,12.09319449]
[1762004684370,3.76312788,185.11,185.1,12.09319449]
[1762004684570,4.8618,185.2,185.1,12.09319449]
[1762004684571,4.77189899,185.16,185.11,2.75]
[1762004684781,7.13919633,185.15,185.11,2.75]
[1762004685081,2.67,185.14,185.11,2.75]
[1762004687669,2.67,185.14,185.1,9.34319449]
[1762004688073,2.67,185.14,185.1,12.20319449]
[1762004688370,2.82,185.12,185.1,9.34319449]
[1762004688679,4.92189899,185.12,185.1,9.34319449]
[1762004689075,2.10189899,185.11,185.1,9.34319449]
[1762004689378,9.39631766,185.11,185.1,9.34319449]
[1762004689574,2.82,185.1,185.0,18.90006625]
[1762004689781,75.6244,185.21,185.0,77.96]
[1762004689782,2.82,185.05,185.0,77.96]
[1762004689974,4.92189899,185.03,185.0,77.96]
[1762004690178,4.86282188,185.15,184.99,80.82]
[1762004690179,2.82,185.06,184.99,80.82]
[1762004690384,2.82,185.03,184.99,80.82]
[1762004690988,4.92189899,185.03,184.99,80.82]
[1762004691684,2.10189899,185.03,185.0,2.86]
[1762004692279,4.92189899,185.03,185.0,2.86]
[1762004693884,4.92189899,185.03,185.0,80.78]
[1762004695290,2.82,185.02,185.0,77.92]
[1762004696985,4.92189899,185.06,185.01,2.86]
[1762004697687,2.82,185.05,185.01,2.86]
[1762004699584,2.82,185.08,185.01,7.7265]
[1762004699892,4.92189899,185.08,185.02,2.86]
[1762004700385,2.10189899,185.11,185.03,2.86]
[1762004700986,4.92189899,185.11,185.03,2.86]
[1762004701388,4.92189899,185.11,185.04,4.8659]
[1762004701586,2.82,185.07,185.03,2.86]
[1762004702192,2.82,185.07,185.01,4.8666]
[1762004702489,2.82,185.07,185.02,70.2]
[1762004702683,2.82,185.07,185.02,73.06]
[1762004704192,2.82,185.07,185.02,70.2]
[1762004705484,2.82,185.17,185.03,2.86]
[1762004705687,2.10189899,185.1,185.03,2.86]
[1762004705886,2.82,185.11,185.03,2.86]
[1762004706692,2.82,185.11,185.05,4.8655]
[1762004706893,2.10189899,185.13,185.06,2.86]
[1762004707089,2.82,185.15,185.06,2.86]
[1762004707288,11.70820667,185.14,185.06,2.86]
[1762004707592,2.82,185.12,185.02,73.06]
[1762004707791,2.82,185.12,185.04,4.8657]
[1762004707987,2.82,185.12,185.05,2.86]
[1762004708293,2.82,185.12,185.05,7.7254]
[1762004708481,4.92189899,185.16,185.06,2.86]
[1762004708685,2.82,185.14,185.06,2.86]
[1762004708885,2.82,185.12,185.06,2.86]
[1762004710483,2.82,185.12,185.03,7.7262]
[1762004710687,2.82,185.1,185.03,7.7262]
[1762004711597,2.82,185.1,185.05,2.86]
[1762004711986,2.82,185.1,185.06,2.86]
[1762004712894,2.82,185.1,185.05,32.82]
[1762004713100,2.82,185.07,185.05,32.82]
[1762004713295,2.82,185.07,185.01,51.22]
[1762004713796,2.82,185.07,185.02,2.86]
[1762004714193,2.10189899,185.08,185.02,2.86]
[1762004714791,2.82,185.1,185.04,2.86]
[1762004715091,4.43422355,185.09,185.02,2.86]
[1762004715396,2.82,185.07,185.02,2.86]
[1762004715595,2.82,185.1,185.02,2.86]
[1762004715898,2.82,185.1,185.03,7.7262]
[1762004716695,2.71,185.14,185.06,2.69]
[1762004716900,11.59941236,185.13,185.06,2.69]
[1762004717095,2.71,185.1,185.06,2.69]
[1762004718489,2.71,185.1,185.03,2.10189899]
[1762004718803,2.71,185.1,185.05,4.79189899]
[1762004720492,4.53902111,185.09,185.05,4.79189899]
[1762004720691,2.71,185.1,185.05,4.79189899]
[1762004720887,4.8636,185.13,185.05,4.79189899]
[1762004720888,2.71,185.08,185.05,4.79189899]
[1762004721200,2.71,185.08,185.05,2.10189899]
[1762004721899,2.71,185.13,185.06,2.69]
[1762004722089,8.98766312,185.12,185.06,2.69]
[1762004722290,7.24930919,185.11,185.07,2.10189899]
[1762004722494,6.68178776,185.25,185.02,43.6]
[1762004722495,2.71,185.14,185.1,4.79189899]
[1762004722690,7.25001353,185.13,185.1,4.79189899]
[1762004722895,4.53993283,185.12,185.1,2.10189899]
[1762004723103,2.71,185.13,185.1,2.10189899]
[1762004723296,4.53981283,185.12,185.1,2.10189899]
[1762004723490,2.71,185.13,185.1,2.10189899]
[1762004723694,7.2103657,185.12,185.1,2.10189899]
[1762004723896,2.67,185.12,185.1,2.10189899]
[1762004726404,2.67,185.1,185.05,2.10189899]
[1762004726608,2.67,185.1,185.03,2.10189899]
[1762004726906,7.21223718,185.09,185.03,9.90789899]
[1762004727109,2.67,185.09,185.05,2.10189899]
[1762004727307,7.21276126,185.08,185.05,2.10189899]
[1762004727508,2.67,185.08,185.05,2.10189899]
[1762004727909,2.67,185.06,184.96,9.65038389]
[1762004728204,4.86282188,185.17,184.96,9.65038389]
[1762004728205,2.67,185.04,184.98,2.10189899]
[1762004728403,2.67,185.02,184.98,2.10189899]
[1762004728602,2.67,185.02,184.96,2.94]
[1762004729805,2.67,185.02,184.97,2.94]
[1762004730194,2.67,185.06,184.97,2.94]
[1762004730397,2.67,185.06,184.96,4.868]
[1762004730398,4.54244432,185.05,185.0,2.10189899]
[1762004730601,2.67,185.09,185.01,2.94]
[1762004730908,2.67,185.07,185.01,2.94]
[1762004731310,2.67,185.07,185.01,7.8065]
[1762004731515,4.54390915,185.06,185.03,2.94]
[1762004731801,2.67,185.07,185.02,2.10189899]
[1762004732008,7.21396597,185.06,185.02,2.10189899]
[1762004732208,2.67,185.06,185.02,2.10189899]
[1762004733111,2.67,185.05,185.02,2.10189899]
[1762004735204,2.67,185.05,185.01,9.90839899]
[1762004735809,2.67,185.05,185.01,2.94]
[1762004737806,2.67,185.09,185.01,2.94]
[1762004738014,8.47380038,185.08,185.01,2.94]
[1762004738206,4.54570924,185.07,185.02,4.8664]
[1762004738409,4.54570924,185.06,185.04,2.94]
[1762004738612,2.67,185.08,185.05,2.10189899]
[1762004738813,7.21541353,185.07,185.05,2.10189899]
[1762004739009,4.54541353,185.06,185.03,2.10189899]
[1762004739315,4.54541353,185.05,185.03,2.10189899]
[1762004739513,2.67,185.06,185.03,5.04189899]
[1762004739716,2.67,185.13,185.03,5.04189899]
[1762004739911,2.67,185.11,185.03,5.04189899]
[1762004740114,2.67,185.09,185.03,2.10189899]
[1762004740309,2.67,185.07,185.01,2.10189899]
[1762004740517,2.67,185.05,185.01,2.10189899]
[1762004740721,7.21545405,185.04,185.01,2.10189899]
[1762004740911,4.54545405,185.03,185.01,2.10189899]
[1762004741221,2.67,185.04,185.01,2.10189899]
[1762004741427,4.54592679,185.03,185.01,2.94]
[1762004741618,2.67,185.04,185.01,2.94]
[1762004741920,4.54592799,185.03,185.01,2.94]
[1762004742120,2.67,185.04,185.01,2.94]
[1762004742319,4.54659122,185.03,185.01,2.94]
[1762004742622,2.67,185.07,185.03,2.94]
[1762004742822,4.54731635,185.06,185.03,2.94]
[1762004743021,4.54731635,185.05,185.03,2.94]
[1762004743324,2.67,185.1,185.03,2.94]
[1762004743522,2.67,185.08,185.03,2.94]
[1762004743724,7.21835413,185.07,185.03,2.94]
[1762004744026,4.54835413,185.06,185.03,2.94]